bitfinex/quotes_SOLUSD_20251206
["timestamp","ask_amount","ask_price","bid_price","bid_amount"]
[1765013538544,8.3,132.55,132.53,5.48570055]
[1765013538745,111.3,132.56,132.54,5.48570055]
[1765013539258,111.3,132.56,132.55,0.7]
[1765013540467,8.4,132.57,132.55,0.7]
[1765013540766,8.4,132.57,132.55,13.0299107]
[1765013541145,8.4,132.57,132.56,0.7]
[1765013542569,8.4,132.57,132.56,8.24375377]
[1765013542868,0.1,132.57,132.56,8.24375377]
[1765013543258,0.1,132.57,132.56,13.02945432]
[1765013543565,0.1,132.57,132.56,8.24375377]
[1765013543958,0.1,132.57,132.56,13.02945432]
[1765013544359,0.1,132.57,132.56,8.24375377]
[1765013544880,0.1,132.57,132.56,13.02945432]
[1765013545093,0.1,132.57,132.56,21.83939924]
[1765013551184,0.1,132.57,132.56,33.7926714]
[1765013551867,0.1,132.57,132.56,50.1015354]
[1765013559108,0.1,132.57,132.56,45.31583485]
[1765013559403,0.1,132.57,132.56,50.1015354]
[1765013559772,0.1,132.57,132.56,58.4015354]
[1765013560880,1e-08,132.57,132.56,58.4015354]
[1765013561296,1e-08,132.57,132.56,61.42074512]
[1765013561972,1e-08,132.57,132.56,58.4015354]
[1765013564402,1e-08,132.57,132.56,56.67378581]
[1765013568007,1e-08,132.57,132.56,59.69299553]
[1765013569281,1e-08,132.57,132.56,56.67378581]
[1765013571779,1e-08,132.57,132.56,53.61583485]
[1765013572100,1e-08,132.57,132.56,56.67378581]
[1765013575786,1e-08,132.57,132.56,59.69322343]
[1765013576210,1e-08,132.57,132.56,47.16384089]
[1765013576389,1e-08,132.57,132.56,47.85384089]
[1765013578411,1e-08,132.57,132.56,11.29170473]
[1765013578924,1e-08,132.57,132.56,36.41051365]
[1765013580388,1e-08,132.57,132.56,39.42972337]
[1765013580712,1e-08,132.57,132.56,47.72972337]
[1765013582020,1e-08,132.57,132.56,26.91056873]
[1765013582585,1e-08,132.57,132.56,27.60056873]
[1765013587816,1e-08,132.57,132.56,36.41051365]
[1765013588015,1e-08,132.57,132.56,20.10164965]
[1765013588312,1e-08,132.57,132.56,28.40164965]
[1765013589109,1e-08,132.57,132.56,31.42085937]
[1765013590604,1e-08,132.57,132.56,47.72972337]
[1765013591927,1e-08,132.57,132.56,44.67177241]
[1765013592222,1e-08,132.57,132.56,26.91056873]
[1765013593725,1e-08,132.57,132.56,27.61056873]
[1765013594625,1e-08,132.57,132.56,26.91056873]
[1765013595622,1e-08,132.57,132.56,27.61056873]
[1765013597122,1e-08,132.57,132.56,26.91056873]
[1765013597504,1e-08,132.57,132.56,10.60170473]
[1765013598105,1e-08,132.57,132.56,26.91056873]
[1765013604611,1e-08,132.57,132.56,23.85261777]
[1765013604813,1e-08,132.57,132.56,26.91056873]
[1765013605329,0.56000001,132.57,132.56,23.85261777]
[1765013606211,1e-08,132.57,132.56,23.85261777]
[1765013606400,1e-08,132.57,132.56,26.91056873]
[1765013608399,0.56000001,132.57,132.55,7.5442666]
[1765013620237,1e-08,132.57,132.55,7.5442666]
[1765013620540,1e-08,132.57,132.55,11.28221756]
[1765013621830,1e-08,132.57,132.55,10.60221756]
[1765013622034,1e-08,132.57,132.56,8.22375377]
[1765013622736,1e-08,132.57,132.56,7.54375377]
[1765013622941,1e-08,132.57,132.56,8.22375377]
[1765013623933,1e-08,132.57,132.56,7.54375377]
[1765013626935,0.56000001,132.57,132.56,7.54375377]
[1765013628029,1e-08,132.57,132.55,7.54432289]
[1765013628227,1e-08,132.57,132.55,8.22432289]
[1765013628928,1e-08,132.57,132.55,13.00517779]
[1765013629632,1e-08,132.57,132.56,5.4608549]
[1765013630621,1e-08,132.57,132.56,4.7808549]
[1765013631443,1e-08,132.57,132.55,13.00517779]
[1765013633220,0.56000001,132.57,132.55,7.54432289]
[1765013634660,5.34085491,132.57,132.54,23.85373971]
[1765013635026,0.56,132.56,132.54,23.85373971]
[1765013635226,0.56,132.56,132.52,18.86483845]
[1765013635227,0.56,132.56,132.53,7.5454382]
[1765013635423,8.3,132.55,132.53,7.5454382]
[1765013635935,8.86,132.55,132.53,7.5454382]
[1765013640247,8.3,132.55,132.52,7.54603078]
[1765013640557,0.56,132.54,132.52,7.54603078]
[1765013640743,8.86,132.55,132.52,8.24603078]
[1765013641454,8.3,132.55,132.53,5.4808549]
[1765013641629,0.56000001,132.57,132.53,5.4808549]
[1765013641829,8.3,132.55,132.52,12.32688568]
[1765013642039,8.3,132.55,132.52,13.02688568]
[1765013642249,8.86,132.55,132.52,13.02688568]
[1765013642432,0.56,132.55,132.52,13.02688568]
[1765013642632,8.86,132.55,132.52,13.02688568]
[1765013645243,8.86,132.55,132.52,8.24603078]
[1765013646132,8.86,132.55,132.52,13.02688568]
[1765013650342,8.86,132.55,132.52,13.01688568]
[1765013650535,8.3,132.55,132.52,7.54603078]
[1765013650739,4.7808549,132.53,132.48,5.4708549]
[1765013650943,13.0808549,132.52,132.48,21.7797189]
[1765013651436,8.86,132.52,132.49,0.69]
[1765013651646,8.86,132.52,132.49,8.23763808]
[1765013654055,8.86,132.52,132.49,13.01849298]
[1765013654255,0.56,132.52,132.49,13.01849298]
[1765013654456,8.86,132.52,132.49,13.01849298]
[1765013659069,8.86,132.52,132.49,8.23763808]
[1765013659567,8.86,132.52,132.49,13.01849298]
[1765013659969,8.86,132.52,132.49,8.23763808]
[1765013660368,13.0808549,132.52,132.49,8.23763808]
[1765013660569,13.6408549,132.52,132.49,8.23763808]
[1765013661062,13.6408549,132.52,132.47,63.99682236]
[1765013661063,5.3408549,132.51,132.47,63.99682236]
[1765013661366,4.7808549,132.48,132.44,24.34696202]
[1765013661667,13.0808549,132.47,132.42,5.6708549]
[1765013661849,13.0808549,132.47,132.43,7.55111093]
[1765013662163,13.0808549,132.47,132.43,8.24111093]
[1765013662164,0.56,132.46,132.43,8.24111093]
[1765013663049,5.3408549,132.46,132.42,7.75172051]
[1765013663365,5.3408549,132.46,132.42,8.44172051]
[1765013663573,0.56,132.45,132.42,13.22257541]
[1765013664966,0.56,132.46,132.42,13.22257541]
[1765013665840,0.56,132.46,132.42,12.53257541]
[1765013666044,0.56,132.46,132.43,8.24100929]
[1765013666471,8.3,132.47,132.43,13.02186419]
[1765013666674,8.86,132.47,132.44,0.69]
[1765013667171,0.56,132.47,132.44,0.69]
[1765013667359,8.86,132.47,132.44,0.69]
[1765013667760,8.86,132.47,132.44,8.24026405]
[1765013672480,13.6408549,132.47,132.44,7.55026405]
[1765013673579,13.6408549,132.47,132.44,8.24026405]
[1765013674473,8.86,132.47,132.44,8.24026405]
[1765013679887,13.6408549,132.47,132.44,8.24026405]
[1765013685987,5.3408549,132.46,132.42,5.6808549]
[1765013686197,4.7808549,132.45,132.42,0.9]
[1765013686391,8.3,132.44,132.42,0.2]
[1765013686987,8.3,132.44,132.42,0.9]
[1765013687804,8.3,132.44,132.42,0.2]
[1765013688096,5.3408549,132.43,132.42,0.2]
[1765013688389,3.62769424,132.43,132.42,0.2]
[1765013690268,8.3,132.44,132.42,0.91]
[1765013690468,8.3,132.44,132.42,0.2]
[1765013690988,8.3,132.44,132.42,0.91]
[1765013692296,8.3,132.44,132.42,0.2]
[1765013692499,8.3,132.44,132.42,0.91]
[1765013692681,8.3,132.44,132.42,0.2]
[1765013692881,8.3,132.44,132.42,0.91]
[1765013693779,11.17784809,132.45,132.42,0.91]
[1765013693986,8.3,132.43,132.42,0.91]
[1765013694391,8.3,132.43,132.42,0.2]
[1765013694979,8.3,132.43,132.42,0.91]
[1765013696988,8.3,132.44,132.42,0.91]
[1765013697188,8.3,132.44,132.43,0.71]
[1765013697602,103.0,132.46,132.43,3.77769424]
[1765013697901,111.3,132.46,132.44,0.71]
[1765013698085,111.3,132.46,132.44,3.77769424]
[1765013698480,8.3,132.46,132.44,3.77769424]
[1765013698799,8.3,132.46,132.45,0.71]
[1765013700398,3.06769424,132.49,132.45,0.71]
[1765013700691,8.3,132.47,132.45,3.77769424]
[1765013701089,8.3,132.47,132.46,0.71]
[1765013701284,8.3,132.47,132.45,3.77769424]
[1765013701581,8.3,132.47,132.46,0.71]
[1765013702701,114.17497949,132.5,132.46,0.71]
[1765013702906,8.3,132.49,132.46,11.32713357]
[1765013703298,8.3,132.49,132.47,0.71]
[1765013708821,8.3,132.49,132.47,8.25883412]
[1765013709190,8.3,132.49,132.48,0.69]
[1765013709896,8.3,132.49,132.47,7.54883412]
[1765013710099,8.3,132.49,132.47,8.23883412]
[1765013712116,8.3,132.49,132.48,0.69]
[1765013712495,8.3,132.49,132.47,7.54883412]
[1765013712815,8.3,132.49,132.47,8.23883412]
[1765013715113,8.3,132.49,132.47,7.54883412]
[1765013715297,8.3,132.49,132.48,0.69]
[1765013715825,103.0,132.5,132.48,8.23830917]
[1765013715999,8.3,132.49,132.48,8.23830917]
[1765013716318,103.0,132.5,132.48,10.61600341]
[1765013716522,0.56,132.53,132.49,3.06769424]
[1765013716713,8.3,132.52,132.49,3.75769424]
[1765013716919,8.3,132.52,132.5,0.69]
[1765013717113,106.62769424,132.54,132.5,0.69]
[1765013717114,103.0,132.54,132.51,3.06769424]
[1765013717296,111.3,132.54,132.52,8.23603078]
[1765013717696,111.3,132.54,132.53,0.69]
[1765013718133,111.3,132.54,132.52,8.23603078]
[1765013718304,111.3,132.54,132.53,0.69]
[1765013720799,111.3,132.54,132.53,8.2354614]
[1765013721124,103.0,132.54,132.53,8.2354614]
[1765013721323,111.3,132.54,132.53,8.2354614]
[1765013722827,8.3,132.54,132.53,8.2354614]
[1765013723323,11.92769424,132.54,132.5,0.69]
[1765013724132,11.92769424,132.54,132.48,43.47841118]
[1765013724133,3.06769424,132.52,132.48,0.69]
[1765013724425,8.3,132.51,132.48,0.69]
[1765013725129,8.3,132.51,132.48,8.23824572]
[1765013726434,11.92769424,132.51,132.48,7.54824572]
[1765013727330,11.92769424,132.51,132.47,24.54764504]
[1765013727538,11.92769424,132.51,132.48,0.69]
[1765013728505,11.36769424,132.51,132.48,8.23815132]
[1765013728726,8.3,132.51,132.48,8.23815132]
[1765013728935,8.3,132.51,132.49,0.69]
[1765013733537,8.3,132.51,132.49,8.23766941]
[1765013734329,8.3,132.51,132.5,0.69]
[1765013734714,8.3,132.51,132.49,7.54766941]
[1765013734908,8.3,132.51,132.49,8.23766941]
[1765013738150,8.3,132.51,132.48,7.54815828]
[1765013738317,8.86,132.51,132.48,8.23815828]
[1765013740428,8.3,132.51,132.48,8.23815828]
[1765013741111,8.3,132.51,132.49,8.22747872]
[1765013753270,8.3,132.51,132.49,8.20747872]
[1765013762158,8.3,132.51,132.47,21.09500238]
[1765013762159,8.3,132.54,132.5,5.44613838]
[1765013762361,8.3,132.54,132.51,4.78613838]
[1765013762569,8.3,132.54,132.52,4.78613838]
[1765013762738,8.3,132.54,132.53,5.44613838]
[1765013763241,1e-08,132.57,132.53,5.44613838]
[1765013763448,8.30000001,132.57,132.55,4.78613838]
[1765013763858,8.30000001,132.57,132.56,0.66]
[1765013766561,1e-08,132.57,132.56,8.20375377]
[1765013767345,1e-08,132.57,132.56,12.98989215]
[1765013781485,1e-08,132.57,132.56,8.20375377]
[1765013781680,1e-08,132.57,132.56,12.98989215]
[1765013789482,1e-08,132.57,132.56,21.79983707]
[1765013789683,1e-08,132.57,132.56,46.38870107]
[1765013795365,1e-08,132.57,132.56,57.684751]
[1765013795992,1e-08,132.57,132.56,41.375887]
[1765013798492,1e-08,132.57,132.56,44.39486884]
[1765013798802,1e-08,132.57,132.56,41.375887]
[1765013800872,1e-08,132.57,132.56,44.39486884]
[1765013801193,1e-08,132.57,132.56,41.375887]
[1765013803779,0.1,132.59,132.57,20.10599485]
[1765013803988,0.1,132.59,132.58,18.57227676]
[1765013804796,0.1,132.59,132.58,42.42375653]
[1765013806596,0.1,132.59,132.58,32.85147977]
[1765013806811,0.1,132.59,132.58,37.63761815]
[1765013807991,0.1,132.59,132.58,46.44756307]
[1765013810417,0.1,132.59,132.58,44.71897027]
[1765013812227,0.1,132.59,132.58,41.66142469]
[1765013812539,0.1,132.59,132.58,44.71897027]
[1765013816146,0.1,132.59,132.58,41.66142469]
[1765013816647,0.1,132.59,132.58,44.71897027]
[1765013817706,0.1,132.59,132.58,47.77651585]
[1765013818712,0.66,132.62,132.59,8.80994492]
[1765013819036,0.66,132.62,132.61,3.05754558]
[1765013819831,0.66,132.62,132.61,10.59845501]
[1765013820928,0.66,132.62,132.61,7.54090943]
[1765013821442,0.66,132.62,132.61,10.59845501]
[1765013821739,0.1,132.62,132.61,10.59845501]
[1765013822034,0.66,132.62,132.61,10.59845501]
[1765013823032,0.1,132.62,132.61,10.59845501]
[1765013823214,0.1,132.62,132.61,11.28845501]
[1765013823536,0.1,132.62,132.61,7.54090943]
[1765013823730,0.1,132.62,132.61,27.59731901]
[1765013824035,0.66,132.62,132.61,26.90731901]
[1765013825062,0.1,132.62,132.61,26.90731901]
[1765013826721,0.1,132.62,132.61,23.84977343]
[1765013827230,0.1,132.62,132.61,26.90731901]
[1765013829238,0.1,132.62,132.61,27.56731901]
[1765013830437,0.1,132.62,132.61,36.37726393]
[1765013831836,0.1,132.62,132.61,26.90731901]
[1765013832129,0.1,132.62,132.61,27.56731901]
[1765013832436,0.1,132.62,132.61,36.37726393]
[1765013836442,1e-08,132.62,132.61,20.06839993]
[1765013836617,1e-08,132.62,132.61,31.36444986]
[1765013838246,0.1,132.64,132.63,16.308864]
[1765013838431,0.66,132.68,132.66,3.05754558]
[1765013839226,0.66,132.68,132.67,16.308864]
[1765013839423,0.66,132.68,132.67,26.90390863]
[1765013839624,0.1,132.68,132.67,26.90390863]
[1765013839951,0.66,132.68,132.67,26.90390863]
[1765013840650,0.66,132.68,132.67,10.59504463]
[1765013843953,0.66,132.68,132.67,7.53749905]
[1765013845075,0.66,132.68,132.62,3.05754558]
[1765013845232,3.05754558,132.67,132.63,7.539347]
[1765013845429,3.05754558,132.67,132.61,7.54035736]
[1765013845430,3.05754558,132.64,132.61,7.54035736]
[1765013845630,8.28,132.67,132.59,18.85477581]
[1765013845631,3.05754558,132.63,132.59,18.85477581]
[1765013845932,0.56,132.62,132.6,16.308864]
[1765013846458,3.61754558,132.62,132.59,7.54191529]
[1765013846959,0.56,132.61,132.59,7.54191529]
[1765013847339,0.56,132.61,132.6,7.54147812]
[1765013848956,3.61754558,132.61,132.56,18.85916109]
[1765013849142,3.05754558,132.6,132.56,21.91670667]
[1765013849341,3.61754558,132.6,132.56,21.91670667]
[1765013849540,0.56,132.59,132.56,21.91670667]
[1765013849743,0.56,132.59,132.57,7.54272997]
[1765013850139,7.5398777,132.63,132.57,11.26027555]
[1765013850140,3.05754558,132.62,132.57,11.26027555]
[1765013850340,0.56,132.6,132.57,10.60027555]
[1765013850958,0.56,132.61,132.57,8.20272997]
[1765013851155,0.56,132.62,132.58,3.05754558]
[1765013851732,0.56,132.62,132.57,7.54272997]
[1765013851733,3.61754558,132.62,132.57,7.54272997]
[1765013851952,3.05754558,132.61,132.57,7.54272997]
[1765013852135,3.61754558,132.61,132.57,7.54272997]
[1765013852456,0.56,132.6,132.57,7.54272997]
[1765013854264,3.05754558,132.59,132.54,21.91956084]
[1765013854463,3.05754558,132.58,132.55,7.544235]
[1765013854637,3.61754558,132.58,132.55,7.544235]
[1765013854948,0.56,132.57,132.55,7.544235]
[1765013855172,3.61754558,132.57,132.54,23.85362944]
[1765013855474,3.05754558,132.56,132.51,3.05754558]
[1765013855679,3.05754558,132.56,132.53,7.54539627]
[1765013855680,0.56,132.56,132.53,7.54539627]
[1765013855879,0.56,132.55,132.53,7.54539627]
[1765013859181,0.56,132.55,132.53,10.60294185]
[1765013861073,0.56,132.57,132.54,0.71]
[1765013861281,8.84,132.57,132.54,3.05754558]
[1765013861585,8.84,132.58,132.55,0.71]
[1765013861754,0.56,132.57,132.54,3.05754558]
[1765013862179,0.56,132.57,132.53,30.17659536]
[1765013863162,0.56,132.57,132.53,10.60294185]
[1765013863369,3.61754558,132.57,132.53,7.54539627]
[1765013863558,3.05754558,132.56,132.53,7.54539627]
[1765013863759,3.61754558,132.56,132.53,7.54539627]
[1765013863972,0.56,132.55,132.53,7.54539627]
[1765013864177,0.56,132.55,132.52,7.54600997]
[1765013864384,3.61754558,132.55,132.51,10.60406533]
[1765013864584,3.61754558,132.55,132.51,11.31406533]
[1765013864883,0.56,132.54,132.51,11.31406533]
[1765013865887,113.60149805,132.56,132.51,11.31406533]
[1765013866095,0.56,132.55,132.51,11.31406533]
[1765013866777,8.84,132.55,132.51,11.31406533]
[1765013867175,0.56,132.54,132.51,10.60406533]
[1765013867996,8.28,132.55,132.53,3.05754558]
[1765013869080,103.0,132.56,132.54,3.76754558]
[1765013869276,8.28,132.56,132.55,3.05754558]
[1765013869465,0.56,132.58,132.55,3.05754558]
[1765013869660,0.56,132.6,132.56,3.77754558]
[1765013869865,8.3,132.59,132.57,3.05754558]
[1765013870200,8.86,132.6,132.57,3.05754558]
[1765013870496,8.86,132.6,132.57,5.4992721]
[1765013870898,103.0,132.61,132.58,4.7792721]
[1765013871097,111.86,132.61,132.59,4.7792721]
[1765013871398,8.86,132.61,132.58,4.7792721]
[1765013872806,0.56,132.6,132.58,4.7792721]
[1765013873300,8.86,132.61,132.58,4.7792721]
[1765013875707,8.86,132.61,132.58,12.32188484]
[1765013877406,8.3,132.61,132.58,12.32188484]
[1765013877593,8.86,132.61,132.58,13.04188484]
[1765013879608,8.3,132.61,132.58,13.04188484]
[1765013879989,0.56,132.62,132.59,5.4992721]
[1765013880300,8.28,132.61,132.58,4.7792721]
[1765013880490,13.0592721,132.61,132.57,12.32236]
[1765013880686,0.56,132.6,132.57,7.5430879]
[1765013880908,0.56,132.6,132.57,13.04236]
[1765013886517,0.56,132.6,132.57,4.7792721]
[1765013886822,8.10153176,132.6,132.56,5.4992721]
[1765013887323,0.56,132.59,132.56,5.4992721]
[1765013888615,8.10153176,132.6,132.56,13.04302274]
[1765013889313,8.10153176,132.6,132.56,12.32302274]
[1765013889520,8.10153176,132.6,132.57,0.7]
[1765013891322,8.10153176,132.6,132.56,13.02302274]
[1765013892026,8.10153176,132.6,132.57,4.7792721]
[1765013892228,0.56,132.6,132.57,5.4792721]
[1765013893125,8.28,132.59,132.57,5.4792721]
[1765013895016,103.0,132.61,132.58,5.4792721]
[1765013895227,8.28,132.6,132.58,5.4792721]
[1765013895426,8.28,132.6,132.59,4.7792721]
[1765013895727,8.28,132.6,132.58,5.4792721]
[1765013896826,8.28,132.6,132.58,13.02176579]
[1765013897422,8.84,132.6,132.57,12.32228918]
[1765013897619,0.56,132.59,132.56,13.02291167]
[1765013897819,8.28,132.58,132.56,13.02291167]
[1765013898502,8.28,132.58,132.57,0.7]
[1765013901330,8.28,132.58,132.56,12.32291167]
[1765013901733,8.28,132.58,132.57,0.7]
[1765013903236,8.28,132.59,132.57,13.02239502]
[1765013903408,8.28,132.59,132.58,4.7792721]
[1765013903608,8.28,132.59,132.58,5.4792721]
[1765013904639,8.28,132.59,132.58,13.02188787]
[1765013905725,8.14235001,132.59,132.58,13.02188787]
[1765013906038,8.28,132.6,132.58,13.02188787]
[1765013907640,103.0,132.61,132.59,0.7]
[1765013907816,111.28,132.61,132.59,5.4792721]
[1765013910019,111.28,132.61,132.59,0.7]
[1765013910543,111.28,132.61,132.58,13.02188787]
[1765013910746,111.28,132.61,132.59,0.7]
[1765013912948,111.28,132.61,132.59,8.24191513]
[1765013914450,103.0,132.61,132.6,5.4792721]
[1765013914747,8.28,132.63,132.6,5.4792721]
[1765013914936,8.28,132.63,132.61,5.4792721]
[1765013915657,8.28,132.63,132.61,13.01998343]
[1765013920346,8.28,132.63,132.62,0.69]
[1765013922057,103.0,132.64,132.62,13.00961292]
[1765013922358,103.0,132.64,132.63,5.4692721]
[1765013923070,8.28,132.66,132.63,5.4692721]
[1765013923282,8.28,132.66,132.64,5.4692721]
[1765013923447,8.28,132.66,132.64,0.69]
[1765013923750,8.28,132.66,132.64,5.4692721]
[1765013923957,8.28,132.66,132.64,8.22917871]
[1765013926769,103.56,132.67,132.64,8.22917871]
[1765013926770,103.0,132.67,132.65,0.69]
[1765013926950,111.28,132.67,132.65,0.69]
[1765013927362,111.28,132.67,132.64,12.31845081]
[1765013927561,111.84,132.67,132.64,13.00845081]
[1765013929269,111.84,132.67,132.64,8.22917871]
[1765013929859,0.56,132.66,132.63,12.31900368]
[1765013930385,0.56,132.66,132.63,10.59596048]
[1765013930787,0.56,132.66,132.63,11.26596048]
[1765013930993,122.43375466,132.67,132.63,8.20973158]
[1765013931198,119.37752576,132.67,132.63,11.26596048]
[1765013932187,119.37752576,132.67,132.64,0.67]
[1765013935467,122.43375466,132.67,132.63,8.20973158]
[1765013935792,122.43375466,132.67,132.63,11.26596048]
[1765013938592,0.56,132.66,132.63,11.26596048]
[1765013940597,122.43375466,132.67,132.64,0.67]
[1765013941189,119.37752576,132.67,132.64,0.67]
[1765013942572,118.81752576,132.67,132.63,10.59596048]
[1765013942775,118.81752576,132.67,132.63,11.26596048]
[1765013942776,0.56,132.66,132.63,11.26596048]
[1765013943091,111.84,132.67,132.64,0.67]
[1765013947126,111.28,132.67,132.64,8.20915665]
[1765013947497,111.84,132.67,132.64,8.20915665]
[1765013950701,0.56,132.66,132.63,11.30595085]
[1765013951610,0.56,132.66,132.63,10.59595085]
[1765013951910,122.43382238,132.67,132.64,0.71]
[1765013952411,121.87382238,132.67,132.61,7.54090943]
[1765013952616,8.84,132.66,132.62,3.7662289]
[1765013952990,8.84,132.66,132.63,0.71]
[1765013953694,0.56,132.66,132.63,0.71]
[1765013953902,8.28,132.65,132.63,0.71]
[1765013954112,0.56,132.66,132.63,0.71]
[1765013954320,0.56,132.66,132.63,11.30596885]
[1765013954618,8.28,132.66,132.63,11.30596885]
[1765013954802,8.28,132.66,132.64,0.71]
[1765013955125,114.15382238,132.67,132.64,0.71]
[1765013955294,8.28,132.66,132.64,0.71]
[1765013956127,111.28,132.67,132.65,3.0562289]
[1765013956496,111.28,132.67,132.65,3.7662289]
[1765013957027,111.28,132.67,132.65,8.24848045]
[1765013957898,111.84,132.67,132.65,7.53848045]
[1765013958219,111.28,132.67,132.65,8.24848045]
[1765013958409,111.28,132.67,132.62,3.0562289]
[1765013958410,0.56,132.66,132.62,3.0562289]
[1765013958605,0.56,132.66,132.63,0.71]
[1765013958920,114.3362289,132.67,132.63,0.71]
[1765013959220,111.84,132.67,132.63,0.71]
[1765013959625,119.37757501,132.67,132.63,8.24973646]
[1765013960394,119.37757501,132.67,132.64,0.71]
[1765013961110,111.84,132.67,132.64,8.24912743]
[1765013963497,111.84,132.67,132.64,0.71]
[1765013963697,8.28,132.66,132.64,0.71]
[1765013964816,8.28,132.66,132.64,8.24891999]
[1765013965012,8.28,132.66,132.65,0.71]
[1765013967226,8.28,132.66,132.64,7.53891999]
[1765013967424,8.28,132.66,132.64,8.24891999]
[1765013969129,103.56,132.67,132.64,8.24891999]
[1765013969302,8.28,132.66,132.64,8.24891999]
[1765013974616,8.28,132.66,132.65,0.71]
[1765013976234,111.28,132.67,132.65,0.71]
[1765013979139,111.84,132.67,132.64,8.20891999]
[1765013981235,111.84,132.67,132.65,0.67]
[1765013984262,111.28,132.67,132.65,0.67]
[1765013985162,111.84,132.67,132.65,0.67]
[1765013986773,111.28,132.67,132.65,0.67]
[1765013988573,111.84,132.67,132.65,0.67]
[1765013991169,103.56,132.67,132.65,0.67]
[1765013991370,8.28,132.66,132.65,0.67]
[1765013999566,103.0,132.67,132.65,8.2086355]
[1765013999766,111.28,132.67,132.65,8.2086355]
[1765013999969,111.28,132.67,132.66,0.67]
[1765014000568,0.1,132.68,132.66,12.98274275]
[1765014000866,0.1,132.68,132.67,4.77467552]
[1765014001056,0.1,132.68,132.67,5.44467552]
[1765014001659,0.1,132.68,132.66,7.53806723]
[1765014001862,0.66,132.68,132.65,8.20856044]
[1765014002057,0.1,132.68,132.66,0.67]
[1765014007288,0.1,132.68,132.66,5.44467552]
[1765014007675,0.1,132.68,132.67,0.67]
[1765014009684,0.1,132.68,132.67,12.98217457]
[1765014012901,0.1,132.68,132.67,21.79211949]
[1765014013106,0.1,132.68,132.67,33.32630797]
[1765014013312,0.1,132.68,132.67,38.10098349]
[1765014013812,0.1,132.68,132.67,41.11791602]
[1765014015813,0.1,132.68,132.67,64.15787395]
[1765014017210,0.1,132.69,132.68,25.11880892]
[1765014017405,0.1,132.69,132.68,30.57348444]
[1765014017885,0.1,132.69,132.68,33.58996194]
[1765014018287,0.1,132.69,132.68,41.1268929]
[1765014019712,0.1,132.69,132.68,49.4068929]
[1765014020086,0.1,132.71,132.68,68.2492203]
[1765014020287,0.1,132.71,132.7,29.89348444]
[1765014020516,0.1,132.71,132.7,38.85348444]
[1765014020811,0.1,132.71,132.7,46.48478334]
[1765014021909,0.1,132.71,132.7,30.04353952]
[1765014022107,0.1,132.71,132.7,37.57933454]
[1765014023390,0.1,132.71,132.7,32.80465902]
[1765014023589,0.1,132.71,132.7,37.57933454]
[1765014032219,0.1,132.71,132.7,46.38927946]
[1765014032418,0.1,132.71,132.7,69.01115481]
[1765014034412,0.1,132.71,132.7,37.57933454]
[1765014034838,0.1,132.71,132.7,29.29933454]
[1765014035025,0.1,132.71,132.7,28.61933454]
[1765014035221,0.1,132.71,132.7,29.29933454]
[1765014037748,0.66,132.71,132.7,7.53579502]
[1765014037947,0.1,132.71,132.7,12.31047054]
[1765014039048,0.1,132.71,132.7,12.97047054]
[1765014041423,0.1,132.71,132.69,7.53636295]
[1765014041744,0.1,132.71,132.7,4.77467552]
[1765014042253,0.1,132.71,132.7,5.43467552]
[1765014042637,0.1,132.71,132.7,12.31047054]
[1765014043045,0.1,132.71,132.69,8.19621935]
[1765014043349,0.66,132.71,132.69,12.31089487]
[1765014045753,0.1,132.71,132.7,5.43467552]
[1765014045931,0.1,132.71,132.7,12.97047054]
[1765014052467,0.1,132.71,132.7,11.24833426]